fUSD/lending_fUSD_20240927
["ID","MTS","AMOUNT","RATE_DAILY","PERIOD"]
[339252508,1727404243515,-502.57768619,0.00012898,2]
[339252509,1727404243527,-504.21219294,0.00012898,2]
[339252510,1727404243535,-503.9628481,0.00012898,2]
[339252511,1727404243544,-501.69291079,0.00012898,2]
[339252512,1727404243554,-504.01304194,0.00012898,2]
[339252513,1727404243564,-502.38315397,0.00012898,2]
[339252514,1727404243573,-503.77816742,0.00012898,2]
[339252515,1727404243582,-500.0,0.00012898,2]
[339252516,1727404243593,-504.08915668,0.00012898,2]
[339252517,1727404243602,-500.0,0.00012898,2]
[339252518,1727404243612,-502.92452258,0.00012898,2]
[339252519,1727404243621,-500.0,0.00012898,2]
[339252520,1727404243631,-500.0,0.00012898,2]
[339252521,1727404243641,-501.5413634,0.00012898,2]
[339252522,1727404243650,-321.17367682,0.00012898,2]
[339252523,1727404243659,-504.39875065,0.00012898,2]
[339252524,1727404243669,-500.0,0.00012898,2]
[339252525,1727404243678,-156.49085113,0.00012898,2]
[339252526,1727404243688,-500.0,0.00012898,2]
[339252527,1727404243697,-432.36636482,0.00012898,2]
[339252528,1727404243707,-500.0,0.00012898,2]
[339252529,1727404243716,-284.95,0.00012898,2]
[339252530,1727404243725,-425.9012426,0.00012898,2]
[339252531,1727404243734,-387.50207366,0.00012898,2]
[339252532,1727404246065,-81.57583766,0.00012898,2]
[339252533,1727404246075,-500.0,0.00012898,2]
[339252534,1727404246085,-500.0,0.00012898,2]
[339252535,1727404246094,-276.0600905,0.00012898,2]
[339252537,1727404246103,-369.73623195,0.00012898,2]
[339252539,1727404246112,-1000.0,0.00012899,2]
[339252540,1727404246121,-1000.0,0.00012899,2]
[339252541,1727404246130,-166.50643989,0.00012899,2]
[339252542,1727404246141,-350.26739301,0.00012899,2]
[339252543,1727404246150,-502.79691652,0.00012899,2]
[339252544,1727404246159,-508.39818096,0.00012899,2]
[339252545,1727404246168,-496.02625605,0.00012899,2]
[339252546,1727404246177,-500.0,0.00012899,2]
[339252547,1727404246186,-221.92640262,0.00012899,2]
[339252548,1727404246195,-503.78721101,0.00012899,2]
[339252549,1727404246205,-174.23389669,0.00012899,2]
[339252550,1727404246214,-505.30704946,0.00012899,2]
[339252551,1727404246223,-500.0,0.00012899,2]
[339252552,1727404246232,-542.04203731,0.00012899,2]
[339252553,1727404246241,-508.64737671,0.00012899,2]
[339252554,1727404246250,-504.86288651,0.00012899,2]
[339252555,1727404246259,-500.0,0.00012899,2]
[339252556,1727404246268,-180.59849695,0.00012899,2]
[339252557,1727404246277,-544.42336356,0.00012899,2]
[339252558,1727404246286,-500.0,0.00012899,2]
[339252559,1727404246295,-505.64176593,0.00012899,2]
[339252560,1727404246304,-212.08787197,0.00012899,2]
[339252561,1727404246313,-503.7957507,0.00012899,2]
[339252562,1727404246322,-501.51800231,0.00012899,2]
[339252563,1727404246332,-506.93843943,0.00012899,2]
[339252564,1727404246341,-508.73753552,0.00012899,2]
[339252565,1727404246350,-632.18070806,0.00012899,2]
[339252566,1727404246359,-500.71017492,0.00012899,2]
[339252567,1727404246369,-540.79651789,0.00012899,2]
[339252568,1727404246378,-504.87576591,0.00012899,2]
[339252569,1727404246390,-6.2205655,0.00012899,2]
[339252570,1727404246399,-510.50001617,0.00012899,2]
[339252571,1727404246408,-509.62844064,0.00012899,2]
[339252572,1727404246418,-503.15925967,0.00012899,2]
[339252573,1727404246427,-500.0,0.00012899,2]
[339252574,1727404246437,-224.27277356,0.00012899,2]
[339252575,1727404246446,-500.83870172,0.00012899,2]
[339252576,1727404246455,-509.05647063,0.00012899,2]
[339252577,1727404246464,-370.13312882,0.00012899,2]
[339252578,1727404246476,-132.58767956,0.00012899,2]
[339252579,1727404246487,-500.0,0.00012899,2]
[339252580,1727404246496,-578.17096313,0.00012899,2]
[339252581,1727404246505,-501.42221507,0.00012899,2]
[339252582,1727404246516,-507.38878686,0.00012899,2]
[339252583,1727404246529,-500.91608126,0.00012899,2]
[339252584,1727404246538,-504.11592541,0.00012899,2]
[339252585,1727404246547,-570.73018553,0.00012899,2]
[339252586,1727404246556,-502.68396384,0.00012899,2]
[339252587,1727404246565,-504.22965503,0.00012899,2]
[339252588,1727404246574,-519.76437155,0.00012899,2]
[339252589,1727404246585,-500.73594341,0.00012899,2]
[339252590,1727404246595,-509.63501638,0.00012899,2]
[339252591,1727404246604,-512.97382512,0.00012899,2]
[339252592,1727404246615,-502.76518478,0.00012899,2]
[339252593,1727404246624,-534.56105928,0.00012899,2]
[339252594,1727404246636,-505.47361123,0.00012899,2]
[339252595,1727404246645,-504.68540503,0.00012899,2]
[339252596,1727404246654,-511.54866574,0.00012899,2]
[339252597,1727404246663,-503.24063066,0.00012899,2]
[339252598,1727404246672,-501.52900182,0.00012899,2]
[339252599,1727404246682,-502.764274,0.00012899,2]
[339252600,1727404246691,-605.73360325,0.00012899,2]
[339252601,1727404246701,-505.67953247,0.00012899,2]
[339252602,1727404246713,-500.0,0.00012899,2]
[339252603,1727404246723,-420.12772172,0.00012899,2]
[339252604,1727404246733,-510.59273659,0.00012899,2]
[339252605,1727404246743,-500.0,0.00012899,2]
[339252606,1727404246752,-500.0,0.00012899,2]
[339252607,1727404246761,-379.09922859,0.00012899,2]
[339252608,1727404246771,-503.63503881,0.00012899,2]
[339252609,1727404246782,-1000.0,0.00012899,2]
[339252610,1727404246792,-154.02680657,0.00012899,2]
[339252611,1727404246803,-403.4410632,0.00012899,2]
[339252612,1727404246814,-500.0,0.00012899,2]
[339252613,1727404246824,-268.66652139,0.00012899,2]
[339252614,1727404246834,-383.5438885,0.00012899,2]
[339252615,1727404246844,-500.0,0.00012899,2]
[339252616,1727404246855,-833.48,0.00012899,2]
[339252617,1727404246864,-833.48,0.00012899,2]
[339252618,1727404246874,-833.48,0.00012899,2]
[339252619,1727404246884,-833.48,0.00012899,2]
[339252620,1727404246893,-833.48,0.00012899,2]
[339252621,1727404246902,-833.48,0.00012899,2]
[339252622,1727404246911,-833.48,0.00012899,2]
[339252623,1727404246920,-833.48,0.00012899,2]
[339252624,1727404246931,-833.48,0.00012899,2]
[339252625,1727404246942,-833.48,0.00012899,2]
[339252626,1727404246952,-833.48,0.00012899,2]
[339252627,1727404246962,-833.48,0.00012899,2]
[339252628,1727404246974,-833.48,0.00012899,2]
[339252629,1727404246986,-833.48,0.00012899,2]
[339252630,1727404246995,-833.48,0.00012899,2]
[339252631,1727404247006,-833.48,0.00012899,2]
[339252632,1727404247016,-833.48,0.00012899,2]
[339252633,1727404247028,-833.48,0.00012899,2]
[339252634,1727404247038,-833.48,0.00012899,2]
[339252635,1727404247048,-833.48,0.00012899,2]
[339252636,1727404247058,-833.48,0.00012899,2]
[339252637,1727404247069,-833.48,0.00012899,2]
[339252638,1727404247080,-833.48,0.00012899,2]
[339252639,1727404247090,-833.51148286,0.00012899,2]
[339252640,1727404247099,-512.75799081,0.00012899,2]
[339252641,1727404247109,-500.0,0.00012899,2]
[339252642,1727404247118,-500.0,0.00012899,2]
[339252643,1727404247127,-500.0,0.00012899,2]
[339252644,1727404247136,-500.0,0.00012899,2]
[339252645,1727404247145,-500.0,0.00012899,2]
[339252646,1727404247155,-500.0,0.00012899,2]
[339252647,1727404247165,-358.58755714,0.00012899,2]
[339252648,1727404247174,-500.0,0.00012899,2]
[339252649,1727404247183,-500.0,0.00012899,2]
[339252650,1727404247192,-500.0,0.00012899,2]
[339252651,1727404247202,-500.0,0.00012899,2]
[339252652,1727404247211,-292.68186423,0.00012899,2]
[339252653,1727404247220,-453.27532054,0.00012899,2]
[339252654,1727404247229,-411.46621562,0.00012899,2]
[339252655,1727404247239,-500.0,0.00012899,2]
[339252656,1727404247248,-500.0,0.00012899,2]
[339252657,1727404247258,-500.0,0.00012899,2]
[339252658,1727404247424,-500.0,0.00012899,2]
[339252659,1727404247435,-500.0,0.00012899,2]
[339252660,1727404247445,-500.0,0.00012899,2]
[339252661,1727404247454,-386.12449535,0.00012899,2]
[339252662,1727404247464,-500.0,0.00012899,2]
[339252663,1727404247474,-502.27781968,0.00012899,2]
[339252664,1727404247484,-301.4772212,0.00012899,2]
[339252665,1727404247494,-500.0,0.00012899,2]
[339252666,1727404247504,-524.08559357,0.00012899,2]
[339252667,1727404247514,-505.20683036,0.00012899,2]
[339252668,1727404247528,-511.60373214,0.00012899,2]
[339252669,1727404247537,-502.32765893,0.00012899,2]
[339252670,1727404247547,-504.43861282,0.00012899,2]
[339252671,1727404247556,-498.7567366,0.00012899,2]
[339252672,1727404247566,-510.57921589,0.00012899,2]
[339252673,1727404247575,-505.16738354,0.00012899,2]
[339252674,1727404247585,-508.75224416,0.00012899,2]
[339252675,1727404247598,-513.26882413,0.00012899,2]
[339252676,1727404247608,-503.92136727,0.00012899,2]
[339252677,1727404247618,-231.69236865,0.00012899,2]
[339252678,1727404247627,-500.0,0.00012899,2]
[339252679,1727404247638,-442.44274508,0.00012899,2]
[339252680,1727404247648,-497.71979785,0.00012899,2]
[339252681,1727404247657,-500.0,0.00012899,2]
[339252682,1727404247666,-294.72047941,0.00012899,2]
[339252683,1727404247675,-227.47162802,0.00012899,2]
[339252684,1727404247685,-505.6736399,0.00012899,2]
[339252685,1727404247695,-500.0,0.00012899,2]
[339252686,1727404247704,-500.0,0.00012899,2]
[339252687,1727404247713,-500.0,0.00012899,2]
[339252688,1727404247723,-265.40125223,0.00012899,2]
[339252689,1727404247732,-500.0,0.00012899,2]
[339252690,1727404247741,-500.0,0.00012899,2]
[339252691,1727404247750,-500.0,0.00012899,2]
[339252692,1727404247759,-500.0,0.00012899,2]
[339252693,1727404247768,-500.0,0.00012899,2]
[339252694,1727404247777,-500.0,0.00012899,2]
[339252695,1727404247786,-500.0,0.00012899,2]
[339252696,1727404247796,-500.0,0.00012899,2]
[339252697,1727404247805,-500.0,0.00012899,2]
[339252698,1727404247814,-500.0,0.00012899,2]
[339252699,1727404247823,-500.0,0.00012899,2]
[339252700,1727404247832,-500.0,0.00012899,2]
[339252701,1727404247841,-269.18928809,0.00012899,2]
[339252702,1727404247851,-326.17633368,0.00012899,2]
[339252703,1727404247860,-500.0,0.00012899,2]
[339252704,1727404247869,-414.90432115,0.00012899,2]
[339252705,1727404247879,-500.0,0.00012899,2]
[339252706,1727404247888,-500.0,0.00012899,2]
[339252707,1727404247897,-500.0,0.00012899,2]
[339252708,1727404247906,-500.0,0.00012899,2]
[339252709,1727404247915,-500.0,0.00012899,2]
[339252710,1727404247924,-500.0,0.00012899,2]
[339252711,1727404247934,-500.0,0.00012899,2]
[339252712,1727404247943,-612.41310264,0.00012899,2]
[339252713,1727404247952,-504.86564579,0.00012899,2]
[339252714,1727404247961,-262.65649345,0.00012899,2]
[339252715,1727404247971,-581.31187806,0.00012899,2]
[339252716,1727404247981,-539.30799048,0.00012899,2]
[339252717,1727404247990,-502.31284784,0.00012899,2]
[339252718,1727404248000,-606.81,0.00012899,2]
[339252719,1727404248009,-502.28665003,0.00012899,2]
[339252720,1727404248018,-573.0862288,0.00012899,2]
[339252721,1727404248027,-507.05375467,0.00012899,2]
[339252722,1727404248036,-449.59117633,0.00012899,2]
[339252723,1727404248045,-361.40062869,0.00012899,2]
[339252724,1727404248054,-503.34778137,0.00012899,2]
[339252725,1727404248064,-500.0,0.00012899,2]
[339252726,1727404248073,-436.72819642,0.00012899,2]
[339252727,1727404248082,-500.0,0.00012899,2]
[339252728,1727404248091,-500.0,0.00012899,2]
[339252729,1727404248100,-500.0,0.00012899,2]
[339252730,1727404248110,-401.19614175,0.00012899,2]
[339252731,1727404248119,-500.0,0.00012899,2]
[339252732,1727404248128,-500.0,0.00012899,2]
[339252733,1727404248139,-500.0,0.00012899,2]
[339252734,1727404248148,-500.0,0.00012899,2]
[339252735,1727404248157,-500.0,0.00012899,2]
[339252736,1727404248166,-500.0,0.00012899,2]
[339252737,1727404248175,-500.0,0.00012899,2]
[339252738,1727404248185,-641.35,0.00012899,2]
[339252739,1727404248194,-500.0,0.00012899,2]
[339252740,1727404248204,-401.34479095,0.00012899,2]
[339252741,1727404248213,-500.0,0.00012899,2]
[339252742,1727404248222,-427.98193761,0.00012899,2]
[339252743,1727404248231,-500.0,0.00012899,2]
[339252744,1727404248240,-500.0,0.00012899,2]
[339252745,1727404248249,-560.77666529,0.00012899,2]
[339252746,1727404248258,-328.66193816,0.00012899,2]
[339252747,1727404248267,-555.911,0.00012899,2]
[339252748,1727404248277,-1912.923,0.00012899,2]
[339252749,1727404248286,-5883.437,0.00012899,2]
[339252750,1727404248295,-1265.389,0.00012899,2]
[339252751,1727404248304,-150.767,0.00012899,2]
[339252752,1727404248313,-449.189,0.00012899,2]
[339252753,1727404248322,-13499.0,0.00012899,2]
[339252754,1727404248331,-626.694,0.00012899,2]
[339252755,1727404248341,-1149.998,0.00012899,2]
[339252756,1727404248350,-532.0,0.000129,2]
[339252757,1727404248359,-134715.30741043,0.000129,2]
[339252758,1727404248369,-327438.3960114,0.000129,2]
[339252759,1727404248384,-1615.08851779,0.000129,2]
[339252760,1727404248395,-4737.96503898,0.000129,2]
[339252761,1727404248406,-5102.84800258,0.000129,2]
[339252762,1727404248417,-2203.20072258,0.000129,2]
[339252763,1727404248428,-995.78156194,0.000129,2]
[339252764,1727404248439,-688.75046812,0.000129,2]
[339252765,1727404248453,-1500.72928783,0.000129,2]
[339252766,1727404248464,-293.06498369,0.000129,2]
[339252767,1727404248476,-4038.52621349,0.000129,2]
[339252768,1727404371793,307.39,0.00010959,2]
[339252769,1727404551525,273.06,9.867e-05,2]
[339252770,1727404796504,150.0,0.0001389,30]
[339252771,1727405093721,259.4,9.539e-05,2]
[339252778,1727405229282,12966.37958272,5e-05,14]
[339252909,1727405432293,-250.0,0.00011256,2]
[339252910,1727405432303,-229.16,0.00011267,2]
[339252911,1727405432316,-1819.49,0.00011267,2]
[339252912,1727405432326,-300.0,0.00011267,2]
[339252913,1727405432336,-13591.77,0.00011268,2]
[339252914,1727405432347,-411.42,0.00011321,2]
[339252915,1727405432357,-1000.0,0.00011321,2]
[339252916,1727405432367,-1852.42,0.00011343,2]
[339252917,1727405432377,-4265.0,0.00011343,2]
[339252918,1727405432387,-592.2,0.0001145,2]
[339252919,1727405432396,-250.0,0.00011496,2]
[339252920,1727405432405,-250.0,0.00011507,2]
[339252921,1727405432415,-332.97,0.00011526,2]
[339252922,1727405432424,-150.0,0.0001153,2]
[339252923,1727405432433,-1256.71,0.0001153,2]
[339252924,1727405432443,-499.99,0.0001153,2]
[339252925,1727405432452,-150.0,0.00011589,2]
[339252926,1727405432461,-156.69397432,0.00011589,2]
[339252927,1727405432474,-150.0,0.00011589,2]
[339252928,1727405432490,-150.0,0.00011589,2]
[339252929,1727405432499,-154.42573221,0.00011589,2]
[339252930,1727405432509,-150.0,0.00011643,2]
[339252931,1727405432518,-176.9,0.0001167,2]
[339252932,1727405432527,-150.0,0.00011696,2]
[339252933,1727405432536,-120.19602755,0.0001175,2]
[339252935,1727405432548,-29.80397245,0.0001175,2]
[339252937,1727405432557,-259.4,0.00011802,2]
[339252939,1727405432566,-150.0,0.00011804,2]
[339252941,1727405432576,-150.0,0.00011804,2]
[339252942,1727405432585,-256.09,0.00011825,2]
[339252943,1727405432595,-180.8,0.00011845,2]
[339252944,1727405432604,-156.41,0.00011845,2]
[339252945,1727405432613,-150.0,0.00011857,2]
[339252946,1727405432623,-219.69,0.00011899,2]
[339252947,1727405432634,-150.0,0.00011911,2]
[339252948,1727405432643,-150.0,0.00011965,2]
[339252949,1727405432653,-1200.0,0.00012,3]
[339252950,1727405432662,-150.0,0.00012,2]
[339252951,1727405432671,-150.0,0.00012018,2]
[339252952,1727405432680,-150.0,0.00012018,2]
[339252953,1727405432690,-150.0,0.00012018,2]
[339252954,1727405432699,-150.0,0.00012072,2]
[339252956,1727405432709,-150.0,0.00012126,2]
[339252958,1727405432718,-150.0,0.00012179,2]
[339252960,1727405432732,-150.0,0.00012233,2]
[339252962,1727405432742,-150.0,0.00012233,2]
[339252964,1727405432751,-150.0,0.00012287,2]
[339252966,1727405432760,-150.0,0.0001234,2]
[339252968,1727405432770,-336.54027485,0.00012378,2]
[339252970,1727405432781,-83.45972515,0.00012378,2]
[339252972,1727405432791,-150.0,0.00012394,2]
[339252974,1727405432800,-232.720822,0.00012433,2]
[339252976,1727405432809,-150.0,0.00012447,2]
[339252977,1727405432819,-150.0,0.00012447,2]
[339252979,1727405432829,-150.0,0.00012447,2]
[339252981,1727405432838,-150.0,0.00012501,2]
[339252983,1727405432849,-150.0,0.00012555,2]
[339252985,1727405432858,-1454.66087885,0.00012603,2]
[339252988,1727405432870,-627.33912115,0.00012603,2]
[339252990,1727405432879,-150.0,0.00012608,2]
[339252992,1727405432888,-190.328,0.00012634,2]
[339252994,1727405432898,-150.0,0.00012662,2]
[339252996,1727405432907,-150.0,0.00012662,2]
[339252998,1727405432916,-2211.50212101,0.0001269,2]
[339253000,1727405432937,-324.0102751,0.0001269,2]
[339253003,1727405432949,-8209.25795685,0.0001269,2]
[339253004,1727405432959,-14188.0888,0.000127,2]
[339253006,1727405432968,-22851.2847,0.000127,2]
[339253008,1727405432981,-8136.3204,0.000127,2]
[339253010,1727405432991,-693.4359,0.000127,2]
[339253012,1727405433000,-5374.03585139,0.000127,2]
[339253014,1727405433009,-5374.03585133,0.00012711,2]
[339253016,1727405433020,-150.0,0.00012716,2]
[339253017,1727405433029,-5374.03585133,0.00012722,2]
[339253018,1727405433039,-5374.03585133,0.00012733,2]
[339253019,1727405433049,-1000.0,0.00012737,2]
[339253020,1727405433059,-5374.03585133,0.00012744,2]
[339253021,1727405433068,-5374.03585133,0.00012756,2]
[339253022,1727405433077,-5374.03585133,0.00012767,2]
[339253023,1727405433086,-150.0,0.00012769,2]
[339253024,1727405433095,-344.51611968,0.00012773,2]
[339253025,1727405433105,-5374.03585133,0.00012778,2]
[339253026,1727405433114,-150.0,0.00012778,2]
[339253027,1727405433123,-5374.03585133,0.00012789,2]
[339253028,1727405433132,-500.0,0.00012793,2]
[339253029,1727405433141,-200.0,0.00012797,2]
[339253030,1727405433150,-190670.4452,0.000128,2]
[339253031,1727405433159,-18067.5931,0.000128,2]
[339253032,1727405433168,-43635.1173,0.000128,2]
[339253033,1727405433178,-6876.5305,0.000128,2]
[339253034,1727405433187,-168.73440505,0.000128,2]
[339253035,1727405433196,-164.8894974,0.000128,2]
[339253036,1727405433206,-164.8894974,0.000128,2]
[339253037,1727405433215,-164.8894974,0.000128,2]
[339253038,1727405433226,-165.38,0.000128,2]
[339253039,1727405433235,-217.7484593,0.000128,2]
[339253040,1727405433246,-217.7484593,0.000128,2]
[339253041,1727405433256,-217.7484593,0.000128,2]
[339253042,1727405433265,-217.7484593,0.000128,2]
[339253043,1727405433274,-217.7484593,0.000128,2]
[339253044,1727405433284,-217.7484593,0.000128,2]
[339253045,1727405433294,-217.7484593,0.000128,2]
[339253046,1727405433303,-217.7484593,0.000128,2]
[339253047,1727405433312,-217.7484593,0.000128,2]
[339253048,1727405433322,-217.7484593,0.000128,2]
[339253049,1727405433331,-217.7484593,0.000128,2]
[339253050,1727405433340,-217.7484593,0.000128,2]
[339253051,1727405433349,-217.7484593,0.000128,2]
[339253052,1727405433358,-217.7484593,0.000128,2]
[339253053,1727405433367,-217.7484593,0.000128,2]
[339253054,1727405433377,-217.7484593,0.000128,2]
[339253055,1727405433385,-217.7484593,0.000128,2]
[339253056,1727405433395,-217.7484593,0.000128,2]
[339253057,1727405433405,-217.7484593,0.000128,2]
[339253058,1727405433415,-218.24,0.000128,2]
[339253059,1727405433423,-215.50732499,0.000128,2]
[339253060,1727405433433,-215.50732499,0.000128,2]
[339253061,1727405433442,-215.50732499,0.000128,2]
[339253062,1727405433451,-215.50732499,0.000128,2]
[339253063,1727405433460,-215.50732499,0.000128,2]
[339253064,1727405433469,-215.50732499,0.000128,2]
[339253065,1727405433480,-215.50732499,0.000128,2]
[339253066,1727405433489,-215.50732499,0.000128,2]
[339253067,1727405433498,-215.50732499,0.000128,2]
[339253068,1727405433506,-215.50732499,0.000128,2]
[339253069,1727405433515,-215.50732499,0.000128,2]
[339253070,1727405433525,-215.50732499,0.000128,2]
[339253071,1727405433535,-215.50732499,0.000128,2]
[339253072,1727405433544,-215.50732499,0.000128,2]
[339253073,1727405433553,-215.50732499,0.000128,2]
[339253074,1727405433563,-215.50732499,0.000128,2]
[339253075,1727405433572,-215.50732499,0.000128,2]
[339253076,1727405433581,-215.50732499,0.000128,2]
[339253077,1727405433590,-215.50732499,0.000128,2]
[339253078,1727405433599,-216.0,0.000128,2]
[339253079,1727405433608,-5374.03585133,0.000128,2]
[339253080,1727405433618,-1913.15792637,0.000128,2]
[339253081,1727405433627,-150.0,0.00012823,2]
[339253082,1727405433636,-500.0,0.00012835,2]
[339253083,1727405433645,-500.0,0.00012835,2]
[339253084,1727405433655,-500.0,0.00012835,2]
[339253085,1727405433665,-500.0,0.00012835,2]
[339253086,1727405433674,-500.0,0.00012835,2]
[339253087,1727405433683,-394.6964,0.00012835,2]
[339253088,1727405433692,-288.791,0.0001287,2]
[339253089,1727405433702,-181.13469086,0.0001287,2]
[339253090,1727405433711,-330.19097894,0.00012871,2]
[339253091,1727405433720,-641.981847,0.00012873,2]
[339253092,1727405433731,-422.44759378,0.00012873,2]
[339253093,1727405433740,-503.4288004,0.00012873,2]
[339253094,1727405433749,-466.23189504,0.00012876,2]
[339253095,1727405433759,-500.0,0.00012876,2]
[339253096,1727405433768,-500.0,0.00012876,2]
[339253097,1727405433778,-322.79005595,0.00012876,2]
[339253098,1727405433787,-500.0,0.00012876,2]
[339253099,1727405433797,-500.0,0.00012876,2]
[339253100,1727405433807,-500.0,0.00012876,2]
[339253101,1727405433817,-502.29265488,0.00012876,2]
[339253102,1727405433826,-170.08635499,0.00012876,2]
[339253103,1727405433837,-563.48819061,0.00012876,2]
[339253104,1727405433846,-500.0,0.00012876,2]
[339253105,1727405433856,-500.0,0.00012876,2]
[339253106,1727405433865,-500.0,0.00012876,2]
[339253107,1727405433874,-502.62104476,0.00012876,2]
[339253108,1727405433884,-501.02356033,0.00012876,2]
[339253109,1727405433894,-501.31635997,0.00012876,2]
[339253110,1727405433902,-504.73318662,0.00012876,2]
[339253111,1727405433912,-503.0987565,0.00012876,2]
[339253112,1727405433921,-500.0,0.00012876,2]
[339253113,1727405433930,-500.0,0.00012876,2]
[339253114,1727405433940,-542.33497771,0.00012876,2]
[339253115,1727405433949,-500.0,0.00012876,2]
[339253116,1727405433959,-506.23635641,0.00012876,2]
[339253117,1727405433968,-500.0,0.00012876,2]
[339253118,1727405433978,-500.0,0.00012876,2]
[339253119,1727405433988,-500.0,0.00012876,2]
[339253120,1727405433998,-577.49155313,0.00012876,2]
[339253121,1727405434008,-500.0,0.00012876,2]
[339253122,1727405434017,-196.08302421,0.00012876,2]
[339253123,1727405434027,-500.0,0.00012876,2]
[339253124,1727405434036,-500.0,0.00012876,2]
[339253125,1727405434046,-500.0,0.00012876,2]
[339253126,1727405434056,-500.0,0.00012876,2]
[339253127,1727405434065,-500.0,0.00012876,2]
[339253128,1727405434075,-500.0,0.00012876,2]
[339253129,1727405434084,-500.0,0.00012876,2]
[339253130,1727405434094,-500.0,0.00012876,2]
[339253131,1727405434103,-317.65036158,0.00012876,2]
[339253132,1727405434112,-338.28229746,0.00012876,2]
[339253133,1727405434122,-506.46617272,0.00012876,2]
[339253134,1727405434131,-519.16157835,0.00012876,2]
[339253135,1727405434141,-450.54,0.00012876,2]
[339253136,1727405434151,-562.31647093,0.00012876,2]
[339253137,1727405434161,-626.41066441,0.00012876,2]
[339253138,1727405434170,-500.0,0.00012876,2]
[339253139,1727405434180,-500.0,0.00012876,2]
[339253140,1727405434189,-500.0,0.00012876,2]
[339253141,1727405434199,-500.0,0.00012876,2]
[339253142,1727405434208,-269.59948578,0.00012876,2]
[339253143,1727405434217,-490.75,0.00012876,2]
[339253144,1727405434227,-500.0,0.00012876,2]
[339253145,1727405434237,-500.0,0.00012876,2]
[339253146,1727405434250,-500.0,0.00012876,2]
[339253147,1727405434259,-500.0,0.00012876,2]
[339253148,1727405434268,-500.0,0.00012876,2]
[339253149,1727405434278,-511.27283624,0.00012876,2]
[339253150,1727405434287,-500.0,0.00012876,2]
[339253151,1727405434297,-593.55961286,0.00012876,2]
[339253152,1727405434306,-568.70368702,0.00012876,2]
[339253153,1727405434316,-500.00000001,0.00012876,2]
[339253154,1727405434325,-500.0,0.00012876,2]
[339253155,1727405434334,-560.24228138,0.00012876,2]
[339253156,1727405434343,-574.97878517,0.00012876,2]
[339253157,1727405434352,-346.40805024,0.00012876,2]
[339253158,1727405434365,-153.59194976,0.00012876,2]
[339253159,1727405434374,-251.41224922,0.00012877,2]
[339253160,1727405434383,-154.15323164,0.00012877,2]
[339253161,1727405434392,-245.94469985,0.00012877,2]
[339253162,1727405434401,-153.55,0.00012882,2]
[339253163,1727405434411,-247.00873767,0.00012889,2]
[339253164,1727405434421,-155.0,0.0001289,2]
[339253165,1727405434430,-2001.82,0.0001289,2]
[339253166,1727405434439,-500.0,0.00012891,2]
[339253167,1727405434448,-500.0,0.00012891,2]
[339253168,1727405434458,-500.0,0.00012891,2]
[339253169,1727405434468,-535.41288241,0.00012891,2]
[339253170,1727405434478,-500.0,0.00012891,2]
[339253171,1727405434488,-500.0,0.00012892,2]
[339253172,1727405434497,-500.0,0.00012892,2]
[339253173,1727405434506,-295.14407826,0.00012892,2]
[339253174,1727405434516,-500.0,0.00012892,2]
[339253175,1727405434525,-500.0,0.00012892,2]
[339253176,1727405434535,-500.0,0.00012892,2]
[339253177,1727405434545,-314.22794575,0.00012892,2]
[339253178,1727405434554,-593.37415969,0.00012892,2]
[339253179,1727405434564,-274.82139457,0.00012892,2]
[339253180,1727405434573,-502.14732838,0.00012892,2]